[Event "Romanian Team Blitz Open 2022"]
[Site "Sebes"]
[Date "2022.12.04"]
[Round "7.5"]
[White "Nastase, Robert-Paul"]
[Black "Soltanici, Ruslan"]
[Result "0-1"]
[ECO "B99"]
[WhiteElo "2229"]
[BlackElo "2357"]
[Annotator "TA"]
[PlyCount "84"]
[EventDate "2022.12.04"]
[EventType "blitz"]
[EventCountry "ROU"]
[SourceTitle "playchess.com"]
[Source "ChessBase"]
[SourceQuality "1"]
[TimeControl "180+2"]

{[%evp 23,84,0,0,0,0,14,0,14,0,-31,-34,-37,0,-21,-13,-11,-18,-101,-12,-15,-18,-21,0,0,-5,-53,-52,-79,-68,-75,-74,-87,-83,-100,-71,-126,-83,-81,-81,-187,-95,-174,-182,-170,-139,-147,-91,-90,0,-212,-201,-334,-323,-314,-279,-839,-800,-1344,-1114,-1733,-1720,-1360,-1018]} 1. e4 {[%emt 0:00:00]} c5 {[%emt 0:00:01]} 2. Nf3 {[%emt 0:00:02]} d6 {[%emt 0:00:01]} 3. d4 {[%emt 0:00:00]} cxd4 {[%emt 0:00:01]} 4. Nxd4 {[%emt 0:00:01]} Nf6 {[%emt 0:00:01]} 5. Nc3 {[%emt 0:00:01]} a6 {[%emt 0:00:01]} 6. Bg5 {[%emt 0:00:01]} e6 {[%emt 0:00:01]} 7. f4 {[%emt 0:00:00][%cal Bf2f4,Bf4g5,Bg5h6][%mdl 32]} Be7 8. Qf3 h6 {[%emt 0:00:01]} 9. Bh4 {[%emt 0:00:04]} Qc7 {[%emt 0:00:02]} 10. O-O-O {[%emt 0:00:04]} Nbd7 {[%emt 0:00:00]} 11. g4 {[%emt 0:00:46]} g5 {[%emt 0:00:02]} 12. fxg5 {[%emt 0:00:01]} Ne5 {[%emt 0:00:01][%csl LRf3,LRg4]} 13. Qg3 {[%emt 0:00:23] 13.Qe2 is more advanced technology. B99: Sicilian Najdorf: 6 Bg5 e6 7 f4 Be7 8 Qf3 Qc7 9 0-0-0 Nbd7.} Nfxg4 {[%emt 0:00:04]} 14. gxh6 {[%emt 0:00:01]} Bxh4 {[%emt 0:00:07]} 15. Qxh4 {[%emt 0:00:01] The position is equal.} Qe7 {[%emt 0:00:05]} 16. Qg3 {[%emt 0:00:22]} (16. Qxe7+ Kxe7 17. Rd2 Rxh6 $17) 16... Qg5+ {[%emt 0:00:24]} ({But not} 16... Nxh6 17. Be2 $14) ({Much worse is} 16... Rxh6 17. h4 $11) 17. Rd2 {[%emt 0:00:03]} Qe3 {[%emt 0:00:16] [#]} (17... Qxh6 {simplifies} 18. Nf3 Qe3 19. Be2 Nxf3 20. Qxf3 Qxf3 21. Bxf3 Ne5) 18. Be2 $146 {[%emt 0:01:06] [#]} ({Predecessor:} 18. Nb3 Qxg3 19. hxg3 Ke7 20. Be2 Rxh6 21. Rhd1 Ne3 22. Re1 Bd7 23. Na5 Ra7 24. Bd1 Nxd1 25. Rexd1 {½-½ (36) Ochsner,B (2287)-Mikkelsen,N (2412) Skorping 2014}) 18... Rxh6 $1 {[%emt 0:00:04] aiming for ...Qxg3.} 19. Qxe3 {[%emt 0:00:07]} (19. Qe1 {is interesting.} Bd7 20. Nd1 Qxe4 21. Bxg4 Qxe1 22. Rxe1 Nxg4 23. Nf5) 19... Nxe3 {[%emt 0:00:02]} 20. Rg1 {[%emt 0:00:25]} (20. h4 $11 {remains equal.}) 20... Rg6 {[%emt 0:00:32]} (20... Ke7 $17 21. Rg3 N3c4 22. Bxc4 Nxc4) 21. Rxg6 $11 Nxg6 {[%emt 0:00:01]} 22. Rd3 {[%emt 0:00:08]} Ng2 {[%emt 0:00:02]} 23. Rg3 {[%emt 0:00:06]} N2f4 {[%emt 0:00:02]} 24. Bf3 {[%emt 0:00:02]} (24. h4 $11) 24... Ke7 $15 {[%emt 0:00:02]} 25. Nce2 {[%emt 0:00:02]} Nxe2+ {[%emt 0:00:08]} 26. Nxe2 {[%emt 0:00:01]} Bd7 {[%emt 0:00:00]} 27. Rh3 {[%emt 0:00:04][%cal Oe4e5]} Ne5 {[%emt 0:00:03]} 28. Kd2 {[%emt 0:00:03]} Rc8 {[%emt 0:00:05]} 29. c3 {[%emt 0:00:01]} (29. Bg2 $142) 29... Nc4+ {[%emt 0:00:01]} 30. Kc2 {[%emt 0:00:02]} b5 {[%emt 0:00:05] Black is more active.} 31. Nd4 {[%emt 0:00:01] [#]} (31. b3 $17 Ne5 32. Bg2) 31... a5 {[%emt 0:00:07]} (31... Ne3+ $1 $19 32. Kd2 e5 33. Nf5+ Nxf5 34. exf5 Bxf5) 32. Be2 {[%emt 0:00:01]} (32. Rh5 $17) 32... e5 $19 {[%emt 0:00:24][%csl LRd4,LRh3]} 33. Nf5+ {[%emt 0:00:04]} Bxf5 {[%emt 0:00:02]} 34. exf5 {[%emt 0:00:00][%mdl 4096] Endgame KRB-KRN} d5 {[%emt 0:00:05]} ({Black should play} 34... Kf6 35. Bf3 b4) 35. Rh6 $17 {[%emt 0:00:03]} Ne3+ {[%emt 0:00:02]} ({Black should try} 35... Rg8 $17 {And now ...Rg2 would win.} 36. Bxc4 bxc4) 36. Kb3 $2 {[%emt 0:00:02]} (36. Kd2 $1 $11 Nc4+ 37. Ke1) 36... Nxf5 $19 {[%emt 0:00:01]} 37. Ra6 {[%emt 0:00:02]} (37. Rh5 {is a better defense.} Kf6 38. Bxb5) 37... a4+ {[%emt 0:00:07]} 38. Kb4 {[%emt 0:00:01]} Nd6 {[%emt 0:00:01]} 39. Bxb5 $2 {[%emt 0:00:03]} (39. h4) 39... Rb8 {[%emt 0:00:01] Black is clearly winning.} 40. Ra5 {[%emt 0:00:05]} e4 {[%emt 0:00:01]} 41. Kxa4 {[%emt 0:00:05]} Rxb5 {[%emt 0:01:18]} 42. Rxb5 Nxb5 {Weighted Error Value: White=0.81/Black=0.18 (very precise)} 0-1

[Event "Romanian Team Blitz Open 2022"]
[Site "Sebes"]
[Date "2022.12.04"]
[Round "7.6"]
[White "Cosma, Ioan"]
[Black "Daianu, Cristian-Clement"]
[Result "1-0"]
[ECO "A27"]
[WhiteElo "2368"]
[BlackElo "2189"]
[Annotator "TA"]
[PlyCount "57"]
[EventDate "2022.12.04"]
[EventType "blitz"]
[EventCountry "ROU"]
[SourceTitle "playchess.com"]
[Source "ChessBase"]
[SourceQuality "1"]
[TimeControl "180+2"]

{[%evp 9,57,29,23,-2,44,45,46,49,40,27,74,72,91,93,95,96,99,96,98,98,98,76,56,12,99,109,101,100,101,93,128,94,109,102,137,57,54,54,103,101,132,126,128,0,20,0,0,-35,-41,-31]} 1. c4 {[%emt 0:00:01]} e5 {[%emt 0:00:01]} 2. Nc3 {[%emt 0:00:02]} Nc6 {[%emt 0:00:01]} 3. Nf3 {[%emt 0:00:02]} f5 {[%emt 0:00:01]} 4. d4 {[%emt 0:00:05]} e4 {[%emt 0:00:01]} 5. Ng1 {[%emt 0:00:02][%cal Bf3g1,Bg1h3,Bh3f4][%mdl 32]} Nf6 {[%emt 0:00:04]} 6. Bg5 {[%emt 0:00:04] A27: English Opening: Three Knights Variation.} Be7 {[%emt 0:00:04]} (6... Bb4 $11 {should be considered.}) 7. e3 $14 {[%emt 0:00:01]} d6 {[%emt 0:00:03]} 8. h4 {[%emt 0:00:01] White is slightly better.} O-O {[%emt 0:00:02]} 9. Nh3 {[%emt 0:00:02] [#]} a6 $146 {[%emt 0:00:35]} (9... h6 $11 {deserves consideration.}) ({Predecessor:} 9... Qe8 10. Nf4 Nd8 11. c5 c6 12. d5 Kh8 13. Bc4 Nf7 14. dxc6 bxc6 15. cxd6 Nxd6 {½-½ (60) Tiller,B (2300)-Bellin,J Baerum 1980}) 10. Nf4 $16 {[%emt 0:00:03]} Qe8 {[%emt 0:00:15]} 11. Rc1 {[%emt 0:00:10]} Bd7 {[%emt 0:00:10]} 12. Ncd5 {[%emt 0:00:08]} Rc8 {[%emt 0:00:12]} 13. Be2 {[%emt 0:00:08] White has more active pieces.} Nxd5 {[%emt 0:00:16]} 14. cxd5 {[%emt 0:00:03]} Nd8 {[%emt 0:00:04]} 15. Bh5 {[%emt 0:00:21]} (15. Bxe7 {simplifies} Qxe7 16. g3 Rf7 17. Kf1) 15... g6 {[%emt 0:00:06]} 16. Be2 {[%emt 0:00:01]} Nf7 {[%emt 0:00:01]} (16... Bxg5 $11 17. hxg5 Qe7) 17. Bxe7 {[%emt 0:00:05]} Qxe7 {[%emt 0:00:01]} 18. Qb3 {[%emt 0:00:03]} Nd8 {[%emt 0:00:52]} 19. g3 {[%emt 0:00:10]} Kh8 {[%emt 0:00:06]} 20. Qd1 {[%emt 0:00:07]} Be8 {[%emt 0:00:10]} 21. g4 {[%emt 0:00:03]} Bd7 {[%emt 0:00:08]} 22. gxf5 {[%emt 0:00:08]} ({White should try} 22. g5 $16) 22... Bxf5 $14 {[%emt 0:00:04]} 23. Bg4 {[%emt 0:00:04] Bxf5 is the strong threat.} Qf7 {[%emt 0:00:15]} (23... Qd7 $14 24. Bxf5 Rxf5) 24. Rg1 $16 {[%emt 0:00:12]} Qf6 {[%emt 0:00:01]} 25. Bxf5 {[%emt 0:00:03]} Qxf5 {[%emt 0:00:02]} 26. Rg5 {[%emt 0:00:06]} (26. Qg4 $16) 26... Qf6 $1 $11 {[%emt 0:00:01]} 27. Qg4 {[%emt 0:00:02]} Nf7 {[%emt 0:00:13]} 28. Nxg6+ {[%emt 0:00:24]} hxg6 29. Rxg6 {[%emt 0:01:19][%mdl 32768] Weighted Error Value: White=0.20 (precise) /Black=0.20 (precise) . Loss on time!?} 1-0

[Event "Romanian Team Blitz Open 2022"]
[Site "Sebes"]
[Date "2022.12.04"]
[Round "7.7"]
[White "Vrencian, Lehel"]
[Black "Itkis, Boris"]
[Result "1/2-1/2"]
[ECO "B08"]
[WhiteElo "2226"]
[BlackElo "2343"]
[Annotator "TA"]
[PlyCount "214"]
[EventDate "2022.12.04"]
[EventType "blitz"]
[EventCountry "ROU"]
[SourceTitle "playchess.com"]
[Source "ChessBase"]
[SourceQuality "1"]
[TimeControl "180+2"]

{[%evp 14,214,63,40,32,18,10,-15,18,18,26,8,14,35,17,29,13,0,0,0,29,19,83,0,0,0,5,10,10,12,16,0,0,0,14,7,13,2,33,18,12,0,33,29,34,0,0,0,0,0,0,0,0,0,0,-1,12,0,0,0,0,0,0,-2,0,-16,0,-6,0,-14,-15,-4,0,0,0,0,0,0,0,0,0,0,0,0,0,-83,-81,-83,-83,-84,-28,-77,-70,-154,-121,-121,-121,-135,0,-120,-108,-120,-99,-120,-120,-120,-114,-89,0,-158,-95,-250,-250,-466,-452,-1179,-162,-217,-43,-42,0,-31,-32,-52,-36,-35,-12,-74,-84,-66,-76,-97,-72,-72,-34,-33,-32,-72,-72,-294,-265,-343,-336,-387,-383,-353,625,608,652,652,645,210,649,649,660,645,614,529,355,8,631,624,623,488,376,0,0,0,0,0,0,0,0,0,0,0,0,0,0,0,0,0,0,0,0,0,0,-7,0,0,-7,-8,0,0,0,0,0,0,0,0,0,-8,22]} 1. e4 {[%emt 0:00:02]} d6 {[%emt 0:00:01]} 2. d4 {[%emt 0:00:01]} Nf6 {[%emt 0:00:01]} 3. Nc3 {[%emt 0:00:01]} g6 {[%emt 0:00:00]} 4. Nf3 {[%emt 0:00:04]} Bg7 {[%emt 0:00:01]} 5. Be2 {[%emt 0:00:01]} O-O {[%emt 0:00:01]} 6. O-O {[%emt 0:00:01]} a6 {[%emt 0:00:01]} 7. Re1 {[%emt 0:00:03]} e6 {[%emt 0:00:02]} 8. h3 {[%emt 0:00:14]} b5 {[%emt 0:00:05]} 9. a3 {[%emt 0:00:04]} Bb7 {[%emt 0:00:01]} 10. Bf1 {[%emt 0:00:02]} h6 {[%emt 0:00:12]} 11. Bf4 {[%emt 0:00:25]} Nbd7 {[%emt 0:00:07]} 12. Qe2 {[%emt 0:00:08]} Nh5 {[%emt 0:00:26]} 13. Bh2 {[%emt 0:00:06]} e5 {[%emt 0:00:01]} 14. dxe5 {[%emt 0:00:11]} Nxe5 {[%emt 0:00:09]} 15. Rad1 {[%emt 0:00:05]} Nxf3+ {[%emt 0:00:06]} 16. Qxf3 {[%emt 0:00:02]} Qf6 {[%emt 0:00:19]} 17. Qg4 {[%emt 0:00:27]} Qe6 {[%emt 0:00:16]} (17... Rfe8 $11) 18. Nd5 {[%emt 0:00:18]} (18. Qxe6 $16 fxe6 19. e5) 18... Bxd5 $11 {[%emt 0:00:10]} 19. exd5 {[%emt 0:00:02]} Qxg4 {[%emt 0:00:05]} 20. hxg4 {[%emt 0:00:01]} Nf6 {[%emt 0:00:01]} 21. f3 {[%emt 0:00:15]} Nd7 {[%emt 0:00:01]} 22. Re7 {[%emt 0:00:07]} Rad8 {[%emt 0:00:01]} 23. c3 {[%emt 0:00:02]} Bf6 {[%emt 0:00:08]} 24. Ree1 {[%emt 0:00:06]} Nc5 {[%emt 0:00:03]} 25. Bf4 {[%emt 0:00:03]} Bg5 {[%emt 0:00:03]} 26. Bg3 {[%emt 0:00:22]} (26. Bxg5 {simplifies} hxg5 27. b4 Nd7 28. Rc1) 26... Na4 {[%emt 0:00:06]} 27. Rb1 {[%emt 0:00:09]} Rfe8 {[%emt 0:00:01]} 28. c4 {[%emt 0:00:06]} Be3+ {[%emt 0:00:23]} 29. Bf2 {[%emt 0:00:03]} Bxf2+ {[%emt 0:00:03]} 30. Kxf2 {[%emt 0:00:01]} Rxe1 {[%emt 0:00:04]} 31. Kxe1 {[%emt 0:00:01]} bxc4 {[%emt 0:00:02]} 32. Bxc4 {[%emt 0:00:02]} a5 {[%emt 0:00:03]} 33. Kd2 {[%emt 0:00:02]} Nb6 {[%emt 0:00:12]} 34. Ba2 {[%emt 0:00:03]} a4 {[%emt 0:00:03]} 35. Re1 {[%emt 0:00:04]} Kf8 {[%emt 0:00:02]} 36. Kc3 {[%emt 0:00:08]} Ra8 {[%emt 0:00:10]} 37. Rh1 {[%emt 0:00:01]} Kg7 {[%emt 0:00:01]} 38. Re1 {[%emt 0:00:01]} Kf6 {[%emt 0:00:05]} 39. Rh1 {[%emt 0:00:02]} Kg7 {[%emt 0:00:04]} 40. Re1 {[%emt 0:00:03]} Kf6 {[%emt 0:00:01]} 41. Kd4 {[%emt 0:00:03]} Nd7 {[%emt 0:00:05]} 42. Bc4 {[%emt 0:00:12]} Rb8 {[%emt 0:00:01]} 43. Kc3 {[%emt 0:00:03]} Nc5 {[%emt 0:00:01]} 44. Rh1 {[%emt 0:00:04]} Kg7 {[%emt 0:00:05]} 45. Re1 {[%emt 0:00:02]} Kf6 {[%emt 0:00:09]} 46. Rh1 {[%emt 0:00:02]} Kg7 {[%emt 0:00:11]} 47. Rb1 {[%emt 0:00:01]} Re8 {[%emt 0:00:05]} 48. Kd2 {[%emt 0:00:05]} g5 {[%emt 0:00:03]} 49. b4 {[%emt 0:00:03]} (49. Rh1 $11 {keeps the balance.}) 49... axb3 $17 {[%emt 0:00:01]} 50. Bxb3 {[%emt 0:00:01]} Ra8 {[%emt 0:00:04]} 51. a4 {[%emt 0:00:05]} Nxa4 {[%emt 0:00:04]} (51... Rb8 $17 52. Bc2 Rxb1 53. Bxb1 Nxa4) 52. Ra1 {[%emt 0:00:02]} (52. Bxa4 $11 Rxa4 53. Kd3) 52... Nb6 $17 {[%emt 0:00:01]} 53. Rc1 {[%emt 0:00:01]} (53. Rxa8 $15 Nxa8 54. Kd3) 53... Ra7 {[%emt 0:00:01]} 54. Kc3 {[%emt 0:00:03]} Kf6 {[%emt 0:00:01]} 55. Rh1 {[%emt 0:00:01]} Kg7 {[%emt 0:00:01]} (55... Ke5 $17 56. Re1+ Kf4) 56. Kd4 {[%emt 0:00:02]} (56. Rc1 $1 $11) 56... Nd7 {[%emt 0:00:01]} 57. Re1 {[%emt 0:00:02]} Ne5 {[%emt 0:00:01]} 58. Rc1 {[%emt 0:00:02]} Rb7 {[%emt 0:00:01]} 59. Bd1 {[%emt 0:00:02]} Rb4+ {[%emt 0:00:02]} 60. Ke3 {[%emt 0:00:02]} Rb7 {[%emt 0:00:03]} (60... Ng6 $17 61. Rxc7 Nf4) 61. Ba4 $2 {[%emt 0:00:01]} (61. Kd4 $1 $11) 61... Kf6 {[%emt 0:00:02]} (61... Ng6 $142 {White must now prevent ...Nf4.} 62. Rc2 Rb4) 62. g3 $2 {[%emt 0:00:03]} (62. Bc2 $17) 62... Ra7 $1 $19 {[%emt 0:00:02]} 63. Bd1 $2 {[%emt 0:00:02]} (63. Bb3) 63... Ra3+ $19 {[%emt 0:00:02]} 64. Kf2 {[%emt 0:00:02]} (64. Kd2 $142 Nxf3+ 65. Ke2) 64... Rd3 $2 {[%emt 0:00:03]} (64... Nd3+ 65. Ke2 Nxc1+ 66. Kd2 Nd3) 65. Be2 {[%emt 0:00:01] [#]} (65. f4 $142 gxf4 66. gxf4) 65... Rxd5 $2 {[%emt 0:00:02]} ({Black should try} 65... Rxf3+ $1 $19 {[%mdl 512]} 66. Bxf3 Nd3+ 67. Ke3 Nxc1) 66. Rxc7 $15 {[%emt 0:00:01]} Rd2 {[%emt 0:00:02]} 67. Ke3 {[%emt 0:00:02]} (67. f4 $5 {[%cal Rf4e5]} Ng6 68. Ke3 $11) 67... Ra2 {[%emt 0:00:00]} 68. Rb7 {[%emt 0:00:02]} Ra3+ {[%emt 0:00:03]} (68... d5 $5 {[%cal Rd5d4]} 69. f4 Nc4+ 70. Bxc4 dxc4 $15) 69. Kf2 $1 {[%emt 0:00:02]} ({Wrong is} 69. Ke4 $2 Nxf3 $1 {[%mdl 512]} 70. Rb6 (70. Bxf3 $2 {too greedy.} d5+ 71. Kd4 Rxf3 $19) 70... Nd2+ 71. Kd5 Re3 $19) 69... Nd3+ {[%emt 0:00:04]} 70. Kf1 {[%emt 0:00:04]} (70. Bxd3 $11 Rxd3 71. Rb8) 70... Ra1+ $17 {[%emt 0:00:02]} 71. Kg2 {[%emt 0:00:00]} Nc5 {[%emt 0:00:05]} 72. Rc7 {[%emt 0:00:02]} Ra2 {[%emt 0:00:05]} 73. Kf1 {[%emt 0:00:01]} Rb2 {[%emt 0:00:03]} 74. Bc4 {[%emt 0:00:04]} Rb7 {[%emt 0:00:01]} 75. Rc6 {[%emt 0:00:02]} Ke5 {[%emt 0:00:02]} 76. Rc8 $2 {[%emt 0:00:03]} (76. f4+ $17 {was called for.} Kd4 77. Ba2) 76... Kd4 $19 {[%emt 0:00:01]} 77. Be2 {[%emt 0:00:02] [#]} Ke3 $1 {[%emt 0:00:02]} 78. Re8+ {[%emt 0:00:07] [#]} Ne6 $1 79. Bc4 {[%emt 0:00:00]} Kxf3 $4 {[%emt 0:00:06][%mdl 8192]} (79... Rb4 $19 80. Bxe6 fxe6 81. Rxe6+ Kxf3 82. Rf6+ Kxg3 83. Rxd6 Rb1+ 84. Ke2 Rh1) 80. Bd5+ $18 {[%emt 0:00:00]} Kxg3 {[%emt 0:00:03]} 81. Bxb7 {[%emt 0:00:00]} Kxg4 {[%emt 0:00:01]} 82. Bd5 $2 {[%emt 0:00:03]} (82. Re7 {[%cal Ob7c8] aiming for Bc8!} Nd8 83. Bc8+ Kf3 84. Rd7) 82... Nf4 $2 {[%emt 0:00:04]} (82... Nc7 83. Re4+ (83. Bxf7 Nxe8 84. Bxe8 h5 $11) 83... Kf5) 83. Bxf7 $18 {[%emt 0:00:02]} h5 {[%emt 0:00:00]} 84. Be6+ {[%emt 0:00:03]} Kg3 {[%emt 0:00:02]} 85. Bc4 {[%emt 0:00:02]} g4 {[%emt 0:00:01]} 86. Re3+ $2 {[%emt 0:00:02]} ({White should play} 86. Bb5 $18) 86... Kh4 $2 {[%emt 0:00:01][%mdl 8192]} (86... Kh2 $11) 87. Kf2 $18 {[%emt 0:00:02]} d5 {[%emt 0:00:03]} 88. Bb3 {[%emt 0:00:01]} d4 {[%emt 0:00:02]} 89. Re4 $2 {[%emt 0:00:02]} (89. Re8 $18) 89... Nd3+ $11 {[%emt 0:00:01]} 90. Kg2 {[%emt 0:00:02]} (90. Kf1 $5 Nc5 $8 91. Rxd4 Nxb3 92. Rd5 $11) 90... Nc5 {[%emt 0:00:00]} 91. Rxd4 {[%emt 0:00:03]} Nxb3 {[%emt 0:00:01]} 92. Rb4 {[%emt 0:00:02]} Nd2 {[%emt 0:00:01]} 93. Ra4 {[%emt 0:00:02]} Nf3 {[%emt 0:00:00]} 94. Ra5 {[%emt 0:00:03]} Ng5 {[%emt 0:00:02]} 95. Ra1 {[%emt 0:00:02]} Nh3 {[%emt 0:00:01]} 96. Ra4 $1 {[%emt 0:00:02]} Ng5 {[%emt 0:00:11]} 97. Ra1 $1 {[%emt 0:00:02]} Nf7 {[%emt 0:00:03]} 98. Rh1+ {[%emt 0:00:01]} Kg5 {[%emt 0:00:01]} 99. Kg3 {[%emt 0:00:01]} (99. Rf1 $5 {[%cal Rf1f7]} Nh6 100. Ra1 $11) 99... Nh6 {[%emt 0:00:02]} 100. Ra1 {[%emt 0:00:03]} Nf5+ {[%emt 0:00:01]} 101. Kh2 $1 {[%emt 0:00:02]} h4 {[%emt 0:00:01]} 102. Ra8 {[%emt 0:00:02]} h3 {[%emt 0:00:04]} 103. Rg8+ {[%emt 0:00:02]} Kf4 {[%emt 0:00:01]} 104. Rf8 {[%emt 0:00:01]} Kg5 {[%emt 0:00:05]} 105. Rg8+ {[%emt 0:00:02]} Kf4 {[%emt 0:00:04]} 106. Rh8 {[%emt 0:00:01]} Nd4 {[%emt 0:00:04]} 107. Rxh3 {[%emt 0:00:04]} Ke5 {[%emt 0:00:07]} 1/2-1/2

[Event "Romanian Team Blitz Open 2022"]
[Site "Sebes"]
[Date "2022.12.04"]
[Round "7.8"]
[White "Bulau, Andrei-Cristian"]
[Black "Craciun, Sasha-Matei"]
[Result "1/2-1/2"]
[ECO "D35"]
[WhiteElo "2154"]
[BlackElo "2001"]
[Annotator "TA"]
[PlyCount "122"]
[EventDate "2022.12.04"]
[EventType "blitz"]
[EventCountry "ROU"]
[SourceTitle "playchess.com"]
[Source "ChessBase"]
[SourceQuality "1"]
[TimeControl "180+2"]

{[%evp 19,122,-5,0,-10,-10,-8,-12,-25,-5,-4,0,-16,-26,-27,-16,-38,-38,-31,-25,-37,-18,-31,-27,-31,9,9,8,-31,0,-31,-5,-31,-12,-31,-12,-12,0,-12,-12,-12,-12,-12,-12,-12,-12,-12,-12,-12,-12,-12,-12,-12,22,-12,14,0,0,0,19,15,16,26,124,25,23,23,23,23,149,149,149,149,200,119,119,119,119,119,119,119,119,119,119,0,119,10,119,119,119,119,149,149,141,141,80,10,17,0,0,0,0,0,0,0,0]} 1. d4 {[%emt 0:00:01]} d5 {[%emt 0:00:00]} 2. c4 {[%emt 0:00:01]} e6 {[%emt 0:00:02]} 3. Nc3 {[%emt 0:00:01]} Be7 {[%emt 0:00:00]} 4. cxd5 {[%emt 0:00:02]} exd5 {[%emt 0:00:02]} 5. Nf3 {[%emt 0:00:01]} Nf6 {[%emt 0:00:01]} 6. Bf4 {[%emt 0:00:01]} c6 {[%emt 0:00:01]} 7. e3 {[%emt 0:00:01]} Bf5 {[%emt 0:00:02]} 8. Bd3 {[%emt 0:00:01]} Bxd3 {[%emt 0:00:01]} 9. Qxd3 {[%emt 0:00:02]} Nbd7 {[%emt 0:00:01]} 10. O-O {[%emt 0:00:02]} O-O {[%emt 0:00:02]} 11. Ne5 {[%emt 0:00:01] D35: Queen's Gambit Declined: Exchange Variation.} Nh5 {[%emt 0:00:28]} 12. Qf5 {[%emt 0:00:21][%csl LRd7,LRh5]} Nxe5 {[%emt 0:00:05]} 13. Bxe5 {[%emt 0:00:07] [#]} Nf6 $146 {[%emt 0:00:06]} (13... g6 $5 {[%cal Rg6f5]} 14. Qh3 f6 $11) ({Predecessor:} 13... g6 14. Qd3 f6 15. Bg3 Qd7 16. Rad1 Rf7 17. Ne2 Re8 18. f3 Nxg3 19. Nxg3 Bd8 {0-1 (50) Carvalho,G (2172)-Van der Stricht,G (2369) Istanbul 2000}) 14. Rac1 {[%emt 0:00:05]} Qd7 {[%emt 0:00:06]} 15. Qxd7 {[%emt 0:00:08]} Nxd7 {[%emt 0:00:08]} 16. Bg3 {[%emt 0:00:01]} h5 {[%emt 0:00:10]} 17. h3 {[%emt 0:00:03]} Rfe8 {[%emt 0:00:04]} 18. Ne2 {[%emt 0:00:04][%cal Bc3e2,Be2f4,Bf4d3,Bd3c5][%mdl 32]} g6 {[%emt 0:00:04]} 19. Nf4 {[%emt 0:00:04]} Nf6 {[%emt 0:00:05]} (19... h4 $5 20. Bh2 $8 Nf6 $11) 20. Nd3 {[%emt 0:00:05]} Ne4 {[%emt 0:00:02] [#] Hoping for ...Nxg3.} 21. Bh2 {[%emt 0:00:02]} Bd6 {[%emt 0:00:22]} 22. Bxd6 Nxd6 {[%emt 0:00:01]} 23. Rc2 {[%emt 0:00:06]} f6 {[%emt 0:00:09]} 24. Nc5 {[%emt 0:00:11]} Kf7 {[%emt 0:00:04]} 25. Rfc1 {[%emt 0:00:01]} Re7 {[%emt 0:00:20]} 26. Rc3 {[%emt 0:00:07]} g5 {[%emt 0:00:03]} 27. g3 {[%emt 0:00:05]} h4 {[%emt 0:00:10]} 28. g4 {[%emt 0:00:03]} Kg6 {[%emt 0:00:03]} 29. Kg2 {[%emt 0:00:03]} Rf8 {[%emt 0:00:03]} 30. Nd3 {[%emt 0:00:10]} Nc4 {[%emt 0:00:11]} 31. b3 {[%emt 0:00:10]} Nd6 {[%emt 0:00:01]} 32. R3c2 {[%emt 0:00:01]} Kg7 {[%emt 0:00:06]} 33. Rb2 {[%emt 0:00:08]} Rfe8 {[%emt 0:00:03]} 34. Rbc2 {[%emt 0:00:02]} Nf7 {[%emt 0:00:17]} 35. Rc5 {[%emt 0:00:12]} Nd8 {[%emt 0:00:07]} 36. R5c2 {[%emt 0:00:06]} Ne6 {[%emt 0:00:01]} 37. Nc5 {[%emt 0:00:01]} Nxc5 {[%emt 0:00:08]} 38. Rxc5 $11 {[%emt 0:00:02][%mdl 4096] Endgame KRR-KRR} Kg6 {[%emt 0:00:03]} 39. b4 {[%emt 0:00:01]} a6 {[%emt 0:00:07] Prevents b5.} 40. a4 {[%emt 0:00:01]} f5 {[%emt 0:00:09] [#]} (40... Rd7 $1 $11 {remains equal.}) 41. gxf5+ (41. b5 $1 $16 {[%cal Rb5a6]}) 41... Kxf5 {[%emt 0:00:01]} 42. b5 {[%emt 0:00:10]} axb5 {[%emt 0:00:09]} 43. axb5 {[%emt 0:00:01]} Ke4 {[%emt 0:00:06]} (43... g4 $11 {keeps the balance.}) 44. bxc6 $16 {[%emt 0:00:03]} bxc6 {[%emt 0:00:01]} 45. Rxc6 {[%emt 0:00:02]} Rf7 {[%emt 0:00:00]} (45... Re6 $16 46. Rc7 R6e7) 46. Rg6 {[%emt 0:00:06]} ({White should try} 46. R1c3 $18) 46... Ref8 {[%emt 0:00:01]} 47. Rc2 {[%emt 0:00:09] And now Rd2 would win.} ({Much worse is} 47. Rxg5 $6 Rxf2+ 48. Kh1 Rd2 $11) 47... Rf5 {[%emt 0:00:01]} 48. Re6+ {[%emt 0:00:02]} Kd3 {[%emt 0:00:01]} 49. Ra2 {[%emt 0:00:02]} R8f7 {[%emt 0:00:02]} 50. Rb6 {[%emt 0:00:11]} Ke4 {[%emt 0:00:03]} 51. Re6+ {[%emt 0:00:03]} Kd3 {[%emt 0:00:01]} 52. Rb2 {[%emt 0:00:03]} (52. Rea6 $16) 52... Rf8 {[%emt 0:00:02]} (52... Rg7 $1 $11) 53. Reb6 {[%emt 0:00:12]} Ke4 {[%emt 0:00:02]} 54. Rd2 {[%emt 0:00:04] Re6+ would kill now.} R8f6 {[%emt 0:00:08] Prevents Re6+.} 55. Rxf6 {[%emt 0:00:03]} Rxf6 {KR-KR} 56. Rb2 {[%emt 0:00:01]} Kd3 {[%emt 0:00:01]} (56... Rf8 $142 57. Rb5 Re8) 57. Rb5 {[%emt 0:00:02]} (57. Ra2 $16) 57... Ke2 $11 {[%emt 0:00:01] The position is equal.} 58. Rxd5 {[%emt 0:00:02]} Rxf2+ {[%emt 0:00:01]} 59. Kg1 {[%emt 0:00:01]} Rf1+ {[%emt 0:00:05]} 60. Kg2 {[%emt 0:00:01]} Rf2+ {[%emt 0:00:01]} 61. Kg1 {[%emt 0:00:01]} Rf1+ {[%emt 0:00:01] Weighted Error Value: White=0.19 (very precise) /Black=0.19 (very precise)} 1/2-1/2